[Event "*** Titled Tuesday Blitz"]
[Site "Chess.com"]
[Date "2018.10.02"]
[Round "9"]
[White "Bryakin_Mikhail"]
[Black "Anton_Demchenko"]
[Result "0-1"]
[WhiteElo "2676"]
[BlackElo "2830"]
[TimeControl "180+2"]
[EndTime "15:02:10 PDT"]
[Termination "Anton_Demchenko won by resignation"]

1. d4 {[%clk 0:02:54.4]} 1... Nf6 {[%clk 0:03:00.9]} 2. c4 {[%clk 0:02:55.1]}
2... g6 {[%clk 0:03:02.3]} 3. Nc3 {[%clk 0:02:55.9]} 3... Bg7 {[%clk 0:03:04]}
4. e4 {[%clk 0:02:56.9]} 4... O-O {[%clk 0:03:05.9]} 5. h3 {[%clk 0:02:58]} 5...
d6 {[%clk 0:03:07]} 6. Be3 {[%clk 0:02:59.1]} 6... Nbd7 {[%clk 0:03:05.7]} 7.
Nf3 {[%clk 0:02:55.5]} 7... e5 {[%clk 0:03:06.8]} 8. d5 {[%clk 0:02:55.6]} 8...
a5 {[%clk 0:03:08.1]} 9. Bd3 {[%clk 0:02:55.7]} 9... Nh5 {[%clk 0:02:45]} 10.
Bc2 {[%clk 0:02:47.5]} 10... Nc5 {[%clk 0:02:30.9]} 11. Qd2 {[%clk 0:02:43.6]}
11... Nf4 {[%clk 0:02:28.3]} 12. O-O {[%clk 0:01:50.8]} 12... Qf6 {[%clk
0:02:22.4]} 13. Bd1 {[%clk 0:01:30.6]} 13... Bd7 {[%clk 0:02:08.8]} 14. Kh2
{[%clk 0:01:31.4]} 14... Qe7 {[%clk 0:02:01.9]} 15. Ng1 {[%clk 0:01:26.5]} 15...
f5 {[%clk 0:01:51.8]} 16. Bxc5 {[%clk 0:01:10.6]} 16... dxc5 {[%clk 0:01:51.4]}
17. g3 {[%clk 0:01:09]} 17... fxe4 {[%clk 0:01:32.2]} 18. Nxe4 {[%clk
0:01:01.2]} 18... Bf5 {[%clk 0:01:29.6]} 19. Bc2 {[%clk 0:00:57.4]} 19... Nh5
{[%clk 0:01:29.2]} 20. h4 {[%clk 0:00:35.9]} 20... Bxe4 {[%clk 0:01:16.8]} 21.
Bxe4 {[%clk 0:00:35.5]} 21... Nf6 {[%clk 0:01:18.7]} 22. Qe2 {[%clk 0:00:31.3]}
22... a4 {[%clk 0:01:11.8]} 23. Kg2 {[%clk 0:00:31]} 23... Ne8 {[%clk
0:00:47.5]} 24. Nf3 {[%clk 0:00:30.1]} 24... Bf6 {[%clk 0:00:38.5]} 25. Ne1
{[%clk 0:00:29.5]} 25... Nd6 {[%clk 0:00:38.8]} 26. Nd3 {[%clk 0:00:31.1]} 26...
b6 {[%clk 0:00:39.2]} 27. Rac1 {[%clk 0:00:26.1]} 27... Qd7 {[%clk 0:00:37.4]}
28. Rh1 {[%clk 0:00:25]} 28... Rf7 {[%clk 0:00:33]} 29. h5 {[%clk 0:00:26.1]}
29... g5 {[%clk 0:00:33.7]} 30. h6 {[%clk 0:00:18.6]} 30... g4 {[%clk
0:00:30.1]} 31. Rh5 {[%clk 0:00:17.7]} 31... Re8 {[%clk 0:00:28.2]} 32. b3
{[%clk 0:00:10.3]} 32... a3 {[%clk 0:00:27.7]} 33. Rf1 {[%clk 0:00:09.6]} 33...
Bd8 {[%clk 0:00:08.5]} 34. Qe3 {[%clk 0:00:08.4]} 34... Qe7 {[%clk 0:00:04.9]}
35. Qe2 {[%clk 0:00:09.1]} 35... Qd7 {[%clk 0:00:05.6]} 36. Qe3 {[%clk
0:00:08.1]} 36... Qe7 {[%clk 0:00:06.5]} 37. Qe2 {[%clk 0:00:09.2]} 37... Qd7
{[%clk 0:00:07.7]} 38. Qe3 {[%clk 0:00:10.4]} 38... Kh8 {[%clk 0:00:07.8]} 39.
Qe2 {[%clk 0:00:07.8]} 39... Bf6 {[%clk 0:00:06.8]} 40. f3 {[%clk 0:00:08.3]}
40... gxf3+ {[%clk 0:00:08]} 41. Rxf3 {[%clk 0:00:09.6]} 41... Qe7 {[%clk
0:00:07.4]} 42. Nf2 {[%clk 0:00:09.9]} 42... Rg8 {[%clk 0:00:07.6]} 43. g4
{[%clk 0:00:10.4]} 43... Bg5 {[%clk 0:00:07.5]} 44. Rxf7 {[%clk 0:00:07.8]}
44... Qxf7 {[%clk 0:00:09.4]} 45. Qf3 {[%clk 0:00:07.8]} 45... Bf4 {[%clk
0:00:10.2]} 46. Kh3 {[%clk 0:00:05.1]} 46... Qd7 {[%clk 0:00:11]} 47. Kh4 {[%clk
0:00:04]} 47... Rf8 {[%clk 0:00:09.4]} 48. Qe2 {[%clk 0:00:02.9]} 48... Nf7
{[%clk 0:00:07.6]} 49. Bf5 {[%clk 0:00:03.9]} 49... Qe7+ {[%clk 0:00:08.4]} 50.
Kh3 {[%clk 0:00:05.5]} 50... Nxh6 {[%clk 0:00:09.6]} 51. Qe4 {[%clk 0:00:07]}
51... Nxf5 {[%clk 0:00:10.1]} 52. Rxf5 {[%clk 0:00:08.9]} 52... Rxf5 {[%clk
0:00:05.6]} 53. Qxf5 {[%clk 0:00:10.8]} 53... Bh6 {[%clk 0:00:05.7]} 54. Ne4
{[%clk 0:00:12.1]} 54... Qf8 {[%clk 0:00:05.2]} 55. Qxf8+ {[%clk 0:00:08.4]}
55... Bxf8 {[%clk 0:00:07.1]} 56. g5 {[%clk 0:00:09.2]} 56... Kg7 {[%clk
0:00:04.4]} 57. Kg4 {[%clk 0:00:09.7]} 57... Kg6 {[%clk 0:00:05.9]} 58. Nf6
{[%clk 0:00:06.7]} 58... Bd6 {[%clk 0:00:04]} 59. Ne4 {[%clk 0:00:05.2]} 59...
Be7 {[%clk 0:00:04.4]} 60. Nc3 {[%clk 0:00:03.9]} 60... Bxg5 {[%clk 0:00:03.7]}
61. Nb5 {[%clk 0:00:05.5]} 61... Bd8 {[%clk 0:00:04]} 62. Nxa3 {[%clk
0:00:06.4]} 62... h5+ {[%clk 0:00:05.4]} 63. Kf3 {[%clk 0:00:08]} 63... Kf5
{[%clk 0:00:06.6]} 64. Nc2 {[%clk 0:00:09.6]} 64... e4+ {[%clk 0:00:07.6]} 65.
Ke2 {[%clk 0:00:11.1]} 65... Ke5 {[%clk 0:00:07.9]} 66. Ne3 {[%clk 0:00:12.1]}
66... Bg5 {[%clk 0:00:08.2]} 67. Nf1 {[%clk 0:00:11.4]} 67... h4 {[%clk
0:00:08.8]} 68. Nh2 {[%clk 0:00:12.8]} 68... Bf4 {[%clk 0:00:08.1]} 69. Ng4+
{[%clk 0:00:13.6]} 69... Kd4 {[%clk 0:00:08.6]} 70. Nf2 {[%clk 0:00:15.5]} 70...
e3 {[%clk 0:00:08.8]} 71. Nh3 {[%clk 0:00:16.6]} 71... Bh6 {[%clk 0:00:05.2]}
72. Ng1 {[%clk 0:00:15.9]} 72... Kc3 {[%clk 0:00:06.5]} 73. Nf3 {[%clk
0:00:13.9]} 73... h3 {[%clk 0:00:07.3]} 74. Nh2 {[%clk 0:00:13.3]} 74... Bf4
{[%clk 0:00:07]} 75. Ng4 {[%clk 0:00:14.8]} 75... Kb2 {[%clk 0:00:06.7]} 76. Kf3
{[%clk 0:00:15.6]} 76... Bg5 {[%clk 0:00:07]} 77. d6 {[%clk 0:00:13.7]} 77...
cxd6 {[%clk 0:00:07.6]} 78. Ke4 {[%clk 0:00:15.2]} 78... e2 {[%clk 0:00:08.1]}
0-1

[Event "*** Titled Tuesday Blitz"]
[Site "Chess.com"]
[Date "2018.10.02"]
[Round "10"]
[White "Sanan_Sjugirov"]
[Black "Alexander_Moskalenko"]
[Result "0-1"]
[WhiteElo "2838"]
[BlackElo "2868"]
[TimeControl "180+2"]
[EndTime "15:07:38 PDT"]
[Termination "Alexander_Moskalenko won by resignation"]

1. d4 {[%clk 0:03:01.9]} 1... Nf6 {[%clk 0:02:59.9]} 2. c4 {[%clk 0:03:01.2]}
2... e6 {[%clk 0:03:01.8]} 3. Nc3 {[%clk 0:03:00.4]} 3... Bb4 {[%clk 0:03:00.7]}
4. Qc2 {[%clk 0:03:01.4]} 4... O-O {[%clk 0:02:57.2]} 5. a3 {[%clk 0:03:01.6]}
5... Bxc3+ {[%clk 0:02:57.9]} 6. Qxc3 {[%clk 0:03:03.5]} 6... d5 {[%clk
0:02:57.9]} 7. Nf3 {[%clk 0:03:03.5]} 7... dxc4 {[%clk 0:02:57.6]} 8. Qxc4
{[%clk 0:03:05.4]} 8... b6 {[%clk 0:02:59.5]} 9. Bg5 {[%clk 0:03:05.5]} 9... Ba6
{[%clk 0:02:02.6]} 10. Qa4 {[%clk 0:03:04.7]} 10... c5 {[%clk 0:01:59.9]} 11.
dxc5 {[%clk 0:02:59.2]} 11... bxc5 {[%clk 0:01:59.7]} 12. Rc1 {[%clk 0:02:57.7]}
12... h6 {[%clk 0:01:51.3]} 13. Bh4 {[%clk 0:02:40.3]} 13... Qe7 {[%clk
0:01:51]} 14. g4 {[%clk 0:02:31.2]} 14... Qd7 {[%clk 0:01:31.1]} 15. Bxf6 {[%clk
0:02:25.9]} 15... Qxa4 {[%clk 0:01:29.4]} 0-1

[Event "*** Titled Tuesday Blitz"]
[Site "Chess.com"]
[Date "2018.10.02"]
[Round "10"]
[White "kharov2001"]
[Black "andrzej"]
[Result "0-1"]
[WhiteElo "2177"]
[BlackElo "2222"]
[TimeControl "180+2"]
[EndTime "15:07:43 PDT"]
[Termination "andrzej won by resignation"]

1. e4 {[%clk 0:03:01.6]} 1... c6 {[%clk 0:03:00.9]} 2. d4 {[%clk 0:03:00.9]}
2... d5 {[%clk 0:03:02.2]} 3. e5 {[%clk 0:03:01.6]} 3... c5 {[%clk 0:03:02.6]}
4. dxc5 {[%clk 0:03:01.9]} 4... e6 {[%clk 0:03:04.1]} 5. Be3 {[%clk 0:03:01.3]}
5... Nh6 {[%clk 0:02:59.5]} 6. Bb5+ {[%clk 0:02:55.6]} 6... Bd7 {[%clk
0:02:59.2]} 7. Bxd7+ {[%clk 0:02:42.7]} 7... Nxd7 {[%clk 0:03:01.1]} 8. Nf3
{[%clk 0:02:39.2]} 8... Nf5 {[%clk 0:02:59.4]} 9. Bf4 {[%clk 0:02:33.3]} 9...
Bxc5 {[%clk 0:02:58.1]} 10. O-O {[%clk 0:02:33]} 10... Qb6 {[%clk 0:02:57.7]}
11. b3 {[%clk 0:02:28.7]} 11... Bd4 {[%clk 0:02:49]} 12. Nxd4 {[%clk 0:02:23.9]}
12... Qxd4 {[%clk 0:02:49.9]} 13. Qxd4 {[%clk 0:02:22]} 13... Nxd4 {[%clk
0:02:50.7]} 14. Nc3 {[%clk 0:02:05]} 14... Rc8 {[%clk 0:02:50.7]} 15. Bd2 {[%clk
0:01:50.9]} 15... Rxc3 {[%clk 0:02:47]} 16. Bxc3 {[%clk 0:01:49.8]} 16... Ne2+
{[%clk 0:02:48]} 17. Kh1 {[%clk 0:01:50.7]} 17... Nxc3 {[%clk 0:02:49.9]} 18. f4
{[%clk 0:01:49.8]} 18... Ke7 {[%clk 0:02:48.3]} 19. Kg1 {[%clk 0:01:45.1]} 19...
Rc8 {[%clk 0:02:48.4]} 20. Kf2 {[%clk 0:01:45.2]} 20... Ne4+ {[%clk 0:02:48.5]}
21. Ke3 {[%clk 0:01:46]} 21... Rc3+ {[%clk 0:02:47.7]} 0-1

[Event "*** Titled Tuesday Blitz"]
[Site "Chess.com"]
[Date "2018.10.02"]
[Round "10"]
[White "sergeikim"]
[Black "MikeSailer"]
[Result "1-0"]
[WhiteElo "2426"]
[BlackElo "2078"]
[TimeControl "180+2"]
[EndTime "15:07:59 PDT"]
[Termination "sergeikim won by resignation"]

1. d4 {[%clk 0:03:01.9]} 1... d5 {[%clk 0:03:00.7]} 2. c4 {[%clk 0:03:02.8]}
2... c6 {[%clk 0:03:01.8]} 3. Nf3 {[%clk 0:03:02]} 3... Nf6 {[%clk 0:03:02.7]}
4. Qc2 {[%clk 0:03:03]} 4... g6 {[%clk 0:03:01.4]} 5. e3 {[%clk 0:03:03]} 5...
Bf5 {[%clk 0:03:01.4]} 6. Bd3 {[%clk 0:03:03.9]} 6... Bxd3 {[%clk 0:03:02.2]} 7.
Qxd3 {[%clk 0:03:05]} 7... Bg7 {[%clk 0:03:03.3]} 8. O-O {[%clk 0:03:05.7]} 8...
O-O {[%clk 0:03:04.3]} 9. Nc3 {[%clk 0:03:06.6]} 9... a6 {[%clk 0:03:05.8]} 10.
e4 {[%clk 0:03:06.1]} 10... dxe4 {[%clk 0:03:02.4]} 11. Nxe4 {[%clk 0:03:07.5]}
11... Nxe4 {[%clk 0:03:03.8]} 12. Qxe4 {[%clk 0:03:08.9]} 12... Nd7 {[%clk
0:03:05]} 13. Bd2 {[%clk 0:03:09.8]} 13... Nf6 {[%clk 0:03:06.1]} 14. Qh4 {[%clk
0:03:09.8]} 14... Qc7 {[%clk 0:02:40.5]} 15. Rfe1 {[%clk 0:03:04.3]} 15... b5
{[%clk 0:02:27]} 16. b3 {[%clk 0:02:52.6]} 16... bxc4 {[%clk 0:02:11.9]} 17.
bxc4 {[%clk 0:02:52.8]} 17... Rfe8 {[%clk 0:01:59.5]} 18. Rab1 {[%clk
0:02:45.9]} 18... Nd7 {[%clk 0:01:55.9]} 19. Rxe7 {[%clk 0:02:41.3]} 19... Rxe7
{[%clk 0:01:46.6]} 20. Qxe7 {[%clk 0:02:40.8]} 20... Bf6 {[%clk 0:01:45.8]} 21.
Qe4 {[%clk 0:02:37.5]} 21... c5 {[%clk 0:01:32.2]} 22. Qxa8+ {[%clk 0:02:36.7]}
1-0

[Event "*** Titled Tuesday Blitz"]
[Site "Chess.com"]
[Date "2018.10.02"]
[Round "10"]
[White "Benek77"]
[Black "Maikrosoft63"]
[Result "0-1"]
[WhiteElo "2588"]
[BlackElo "2578"]
[TimeControl "180+2"]
[EndTime "15:08:27 PDT"]
[Termination "Maikrosoft63 won by checkmate"]

1. e4 {[%clk 0:03:01.9]} 1... c5 {[%clk 0:03:00.6]} 2. Nf3 {[%clk 0:03:02.4]}
2... Nc6 {[%clk 0:03:01.5]} 3. d4 {[%clk 0:03:03.1]} 3... cxd4 {[%clk
0:03:03.4]} 4. Nxd4 {[%clk 0:03:04.9]} 4... Nf6 {[%clk 0:03:04.4]} 5. Nc3 {[%clk
0:03:05.2]} 5... d6 {[%clk 0:03:05]} 6. Bc4 {[%clk 0:03:04.1]} 6... Qb6 {[%clk
0:03:05.5]} 7. Nb3 {[%clk 0:03:03.9]} 7... e6 {[%clk 0:03:05.8]} 8. O-O {[%clk
0:03:03.5]} 8... a6 {[%clk 0:03:06.6]} 9. Bg5 {[%clk 0:02:49.2]} 9... Be7 {[%clk
0:03:07.4]} 10. Bxf6 {[%clk 0:02:49]} 10... Bxf6 {[%clk 0:03:09.3]} 11. Qxd6
{[%clk 0:02:48.1]} 11... Bd7 {[%clk 0:03:07.9]} 12. Rad1 {[%clk 0:02:17.4]}
12... O-O-O {[%clk 0:03:08.6]} 13. Qd2 {[%clk 0:02:13.3]} 13... Ne5 {[%clk
0:03:02.4]} 14. Qe2 {[%clk 0:02:12]} 14... Bc6 {[%clk 0:02:54.8]} 15. Kh1 {[%clk
0:02:07.6]} 15... Rxd1 {[%clk 0:02:48.5]} 16. Rxd1 {[%clk 0:02:08.3]} 16... Nxc4
{[%clk 0:02:49.3]} 17. Qxc4 {[%clk 0:02:08.8]} 17... Qxf2 {[%clk 0:02:50.2]} 18.
Na5 {[%clk 0:02:06]} 18... Rd8 {[%clk 0:02:33.6]} 19. Rxd8+ {[%clk 0:02:02.3]}
19... Kxd8 {[%clk 0:02:35.5]} 20. Nxc6+ {[%clk 0:02:03.3]} 20... bxc6 {[%clk
0:02:36.8]} 21. g3 {[%clk 0:01:34.4]} 21... Bd4 {[%clk 0:02:29.6]} 22. Ne2
{[%clk 0:01:09.2]} 22... Qf3# {[%clk 0:02:30.3]} 0-1

[Event "*** Titled Tuesday Blitz"]
[Site "Chess.com"]
[Date "2018.10.02"]
[Round "10"]
[White "Rashad_Zeynalli"]
[Black "alishersuleymenov"]
[Result "0-1"]
[WhiteElo "2341"]
[BlackElo "2490"]
[TimeControl "180+2"]
[EndTime "15:08:28 PDT"]
[Termination "alishersuleymenov won by resignation"]

1. e4 {[%clk 0:03:01.3]} 1... c5 {[%clk 0:03:00.7]} 2. Nf3 {[%clk 0:03:01.9]}
2... Nc6 {[%clk 0:03:01.3]} 3. d4 {[%clk 0:03:03.3]} 3... cxd4 {[%clk 0:03:02]}
4. Nxd4 {[%clk 0:03:05.2]} 4... Nf6 {[%clk 0:03:03.6]} 5. Nc3 {[%clk 0:03:06.4]}
5... d6 {[%clk 0:03:05.1]} 6. Bg5 {[%clk 0:03:06.6]} 6... Bd7 {[%clk 0:03:05.8]}
7. Qd2 {[%clk 0:03:06.4]} 7... Rc8 {[%clk 0:03:07]} 8. f4 {[%clk 0:03:05]} 8...
Nxd4 {[%clk 0:03:00.8]} 9. Qxd4 {[%clk 0:03:04.8]} 9... Qa5 {[%clk 0:03:02.3]}
10. O-O-O {[%clk 0:03:03]} 10... Rxc3 {[%clk 0:03:02.9]} 11. Bxf6 {[%clk
0:02:54.2]} 11... Rc7 {[%clk 0:03:02.8]} 12. Bxg7 {[%clk 0:02:50.5]} 12... e5
{[%clk 0:03:03.6]} 13. Bxh8 {[%clk 0:02:02.8]} 13... exd4 {[%clk 0:03:03.5]} 14.
Kb1 {[%clk 0:02:00.6]} 14... Be6 {[%clk 0:02:24.1]} 15. b3 {[%clk 0:01:51.4]}
15... Rxc2 {[%clk 0:02:03.1]} 16. Kxc2 {[%clk 0:01:47.6]} 16... Qxa2+ {[%clk
0:02:04]} 17. Kc1 {[%clk 0:01:32.1]} 17... Qa1+ {[%clk 0:01:56.2]} 18. Kd2
{[%clk 0:01:27.2]} 18... Qc3+ {[%clk 0:01:56.9]} 0-1

[Event "*** Titled Tuesday Blitz"]
[Site "Chess.com"]
[Date "2018.10.02"]
[Round "10"]
[White "evgenysharapov"]
[Black "EndgameGrinder"]
[Result "1-0"]
[WhiteElo "2459"]
[BlackElo "2488"]
[TimeControl "180+2"]
[EndTime "15:10:14 PDT"]
[Termination "evgenysharapov won by resignation"]

1. c4 {[%clk 0:03:01.9]} 1... c5 {[%clk 0:02:58.3]} 2. Nc3 {[%clk 0:03:02.3]}
2... Nc6 {[%clk 0:02:58.9]} 3. g3 {[%clk 0:03:02.4]} 3... g6 {[%clk 0:03:00.6]}
4. Bg2 {[%clk 0:03:03.1]} 4... Bg7 {[%clk 0:03:02.3]} 5. Nf3 {[%clk 0:03:03.9]}
5... e6 {[%clk 0:03:03.9]} 6. O-O {[%clk 0:03:03.9]} 6... Nge7 {[%clk
0:03:05.2]} 7. e3 {[%clk 0:03:04.4]} 7... d5 {[%clk 0:03:06.1]} 8. cxd5 {[%clk
0:03:04.9]} 8... Nxd5 {[%clk 0:03:08]} 9. Nxd5 {[%clk 0:03:05.4]} 9... exd5
{[%clk 0:03:09.1]} 10. d4 {[%clk 0:03:06]} 10... cxd4 {[%clk 0:03:10.4]} 11.
Nxd4 {[%clk 0:03:06.6]} 11... Nxd4 {[%clk 0:03:11.4]} 12. exd4 {[%clk
0:03:07.5]} 12... O-O {[%clk 0:03:13.3]} 13. Qb3 {[%clk 0:03:06.9]} 13... Be6
{[%clk 0:03:14.5]} 14. Be3 {[%clk 0:03:04.5]} 14... Qd7 {[%clk 0:03:14]} 15.
Rfc1 {[%clk 0:03:03.2]} 15... Rfc8 {[%clk 0:03:14.8]} 16. h4 {[%clk 0:02:55.3]}
16... h5 {[%clk 0:03:10.9]} 17. Kh2 {[%clk 0:02:50.2]} 17... b6 {[%clk
0:02:55.1]} 18. a4 {[%clk 0:02:41.7]} 18... Rxc1 {[%clk 0:02:55.8]} 19. Rxc1
{[%clk 0:02:41.6]} 19... Rd8 {[%clk 0:02:38.2]} 20. Rc3 {[%clk 0:02:33.8]} 20...
Bf8 {[%clk 0:02:25.4]} 21. Bg5 {[%clk 0:02:28.5]} 21... Re8 {[%clk 0:02:22.3]}
22. Bf4 {[%clk 0:02:19]} 22... Rc8 {[%clk 0:02:02.9]} 23. Rxc8 {[%clk
0:02:14.6]} 23... Qxc8 {[%clk 0:02:04.8]} 24. Bxd5 {[%clk 0:02:13.2]} 24... Bxd5
{[%clk 0:02:06.7]} 25. Qxd5 {[%clk 0:02:13.6]} 25... Qc2 {[%clk 0:02:08]} 26.
Kg2 {[%clk 0:02:07.3]} 26... Qxa4 {[%clk 0:01:59.4]} 27. Qd8 {[%clk 0:01:57.4]}
27... Qb4 {[%clk 0:01:57.6]} 28. d5 {[%clk 0:01:50]} 28... Qe4+ {[%clk
0:01:59.5]} 29. Kh2 {[%clk 0:01:46.9]} 29... Qf3 {[%clk 0:01:46.5]} 30. Be3
{[%clk 0:01:37.6]} 30... Kg7 {[%clk 0:01:01.7]} 31. d6 {[%clk 0:01:33.9]} 31...
Qf6 {[%clk 0:01:00.7]} 32. Bh6+ {[%clk 0:01:31.1]} 1-0

[Event "*** Titled Tuesday Blitz"]
[Site "Chess.com"]
[Date "2018.10.02"]
[Round "10"]
[White "RiskyDecision"]
[Black "Blitzstream"]
[Result "0-1"]
[WhiteElo "2397"]
[BlackElo "2604"]
[TimeControl "180+2"]
[EndTime "15:10:41 PDT"]
[Termination "Blitzstream won by resignation"]

1. d4 {[%clk 0:03:01.9]} 1... g6 {[%clk 0:03:00.6]} 2. g3 {[%clk 0:03:00.6]}
2... Bg7 {[%clk 0:03:02.5]} 3. Bg2 {[%clk 0:03:02.1]} 3... d6 {[%clk 0:03:04.2]}
4. Nf3 {[%clk 0:03:00.4]} 4... Nd7 {[%clk 0:03:04.3]} 5. O-O {[%clk 0:03:00.7]}
5... b6 {[%clk 0:03:05.5]} 6. c4 {[%clk 0:03:00.3]} 6... Bb7 {[%clk 0:03:06.7]}
7. Nc3 {[%clk 0:03:00.9]} 7... e6 {[%clk 0:03:08.2]} 8. e4 {[%clk 0:02:53.7]}
8... Ne7 {[%clk 0:03:09.5]} 9. d5 {[%clk 0:02:51.2]} 9... e5 {[%clk 0:03:10.3]}
10. Ne1 {[%clk 0:02:47.6]} 10... h6 {[%clk 0:03:09.3]} 11. Nd3 {[%clk
0:02:45.9]} 11... a6 {[%clk 0:03:09.9]} 12. f4 {[%clk 0:02:42.8]} 12... exf4
{[%clk 0:03:07.6]} 13. gxf4 {[%clk 0:02:43.1]} 13... O-O {[%clk 0:03:01.1]} 14.
Kh1 {[%clk 0:02:35]} 14... f5 {[%clk 0:02:52.6]} 15. e5 {[%clk 0:02:24.6]} 15...
dxe5 {[%clk 0:02:52.1]} 16. fxe5 {[%clk 0:02:25.7]} 16... Nxe5 {[%clk 0:02:53]}
17. Nxe5 {[%clk 0:02:26.7]} 17... Bxe5 {[%clk 0:02:54.7]} 18. Bxh6 {[%clk
0:02:26.8]} 18... Rf7 {[%clk 0:02:56.3]} 19. Bf4 {[%clk 0:02:20.1]} 19... Qd6
{[%clk 0:02:44.1]} 20. Bxe5 {[%clk 0:02:01.6]} 20... Qxe5 {[%clk 0:02:46]} 21.
Re1 {[%clk 0:02:03.1]} 21... Qf4 {[%clk 0:02:46.8]} 22. Qd3 {[%clk 0:01:55.8]}
22... Raf8 {[%clk 0:02:10.2]} 23. Ne2 {[%clk 0:01:47.4]} 23... Qh4 {[%clk
0:02:05.8]} 24. Nd4 {[%clk 0:01:46.1]} 24... Rh7 {[%clk 0:02:04]} 25. h3 {[%clk
0:01:43.9]} 25... Bc8 {[%clk 0:02:04.6]} 26. Ne6 {[%clk 0:01:40.3]} 26... Bxe6
{[%clk 0:02:04.3]} 27. Rxe6 {[%clk 0:01:39.8]} 27... f4 {[%clk 0:01:55]} 28.
Rae1 {[%clk 0:01:31]} 28... f3 {[%clk 0:01:54.6]} 29. Bf1 {[%clk 0:01:32.1]}
29... Qg3 {[%clk 0:01:42.2]} 30. Qd2 {[%clk 0:00:22.6]} 30... f2 {[%clk
0:01:40.8]} 0-1

[Event "*** Titled Tuesday Blitz"]
[Site "Chess.com"]
[Date "2018.10.02"]
[Round "10"]
[White "W_Amadeus"]
[Black "AliKa2810"]
[Result "1-0"]
[WhiteElo "2620"]
[BlackElo "2486"]
[TimeControl "180+2"]
[EndTime "15:10:58 PDT"]
[Termination "W_Amadeus won by resignation"]

1. e4 {[%clk 0:03:01.9]} 1... c6 {[%clk 0:02:58.9]} 2. d4 {[%clk 0:03:02.2]}
2... d5 {[%clk 0:03:00.5]} 3. e5 {[%clk 0:03:03.8]} 3... Bf5 {[%clk 0:03:00.6]}
4. h4 {[%clk 0:03:05]} 4... h5 {[%clk 0:02:59.3]} 5. Bd3 {[%clk 0:03:05.9]} 5...
Bxd3 {[%clk 0:02:59]} 6. Qxd3 {[%clk 0:03:07.8]} 6... e6 {[%clk 0:03:00.5]} 7.
Bg5 {[%clk 0:03:08.7]} 7... Be7 {[%clk 0:03:00.7]} 8. Nf3 {[%clk 0:03:09.4]}
8... Nh6 {[%clk 0:03:00.6]} 9. Nc3 {[%clk 0:03:09.8]} 9... Nd7 {[%clk
0:03:00.3]} 10. Ne2 {[%clk 0:02:51.4]} 10... Nf5 {[%clk 0:02:58.4]} 11. c3
{[%clk 0:02:51.1]} 11... c5 {[%clk 0:02:50.4]} 12. Ng3 {[%clk 0:02:50.9]} 12...
Nxg3 {[%clk 0:02:45.6]} 13. fxg3 {[%clk 0:02:52.8]} 13... c4 {[%clk 0:02:37.6]}
14. Qc2 {[%clk 0:02:45.2]} 14... Nb6 {[%clk 0:01:57.1]} 15. O-O {[%clk
0:02:29.5]} 15... Qd7 {[%clk 0:01:48.7]} 16. Bxe7 {[%clk 0:02:26.6]} 16... Kxe7
{[%clk 0:01:48.9]} 17. Ng5 {[%clk 0:02:26.5]} 17... Raf8 {[%clk 0:01:43.9]} 18.
Rae1 {[%clk 0:01:46.8]} 18... Kd8 {[%clk 0:01:42.8]} 19. Rf2 {[%clk 0:01:39.3]}
19... Qe7 {[%clk 0:01:20.5]} 20. Qe2 {[%clk 0:01:25.6]} 20... Nd7 {[%clk
0:01:03]} 21. b3 {[%clk 0:01:13.3]} 21... b5 {[%clk 0:00:41.1]} 22. a4 {[%clk
0:01:14.1]} 22... b4 {[%clk 0:00:32.7]} 23. bxc4 {[%clk 0:01:12.4]} 23... bxc3
{[%clk 0:00:32.9]} 24. cxd5 {[%clk 0:01:07.4]} 24... exd5 {[%clk 0:00:32.4]} 25.
Qb5 {[%clk 0:01:03.1]} 25... Qa3 {[%clk 0:00:28.2]} 26. e6 {[%clk 0:00:59.1]}
1-0

[Event "*** Titled Tuesday Blitz"]
[Site "Chess.com"]
[Date "2018.10.02"]
[Round "10"]
[White "saraswathii"]
[Black "2165149677570"]
[Result "0-1"]
[WhiteElo "2298"]
[BlackElo "2336"]
[TimeControl "180+2"]
[EndTime "15:11:10 PDT"]
[Termination "2165149677570 won by resignation"]

1. d4 {[%clk 0:03:01.9]} 1... Nf6 {[%clk 0:03:01.2]} 2. Bf4 {[%clk 0:03:02.6]}
2... b6 {[%clk 0:02:58.9]} 3. e3 {[%clk 0:03:01.7]} 3... Bb7 {[%clk 0:03:00.4]}
4. Nf3 {[%clk 0:03:02.1]} 4... g6 {[%clk 0:03:01.9]} 5. Be2 {[%clk 0:03:02.4]}
5... Bg7 {[%clk 0:03:03.4]} 6. h3 {[%clk 0:03:03.8]} 6... O-O {[%clk 0:03:05.3]}
7. O-O {[%clk 0:03:02.7]} 7... d6 {[%clk 0:03:07.2]} 8. c4 {[%clk 0:03:02.2]}
8... Nbd7 {[%clk 0:03:09.1]} 9. Nc3 {[%clk 0:03:03.3]} 9... Re8 {[%clk
0:03:10.4]} 10. a4 {[%clk 0:03:02.3]} 10... a5 {[%clk 0:03:10.8]} 11. Qd2 {[%clk
0:03:01]} 11... e5 {[%clk 0:03:12.2]} 12. dxe5 {[%clk 0:03:01]} 12... Nxe5
{[%clk 0:03:13.3]} 13. Bxe5 {[%clk 0:02:59.7]} 13... dxe5 {[%clk 0:03:14.3]} 14.
Rad1 {[%clk 0:02:59]} 14... Qe7 {[%clk 0:03:03.1]} 15. Qc2 {[%clk 0:02:50.5]}
15... Rad8 {[%clk 0:02:46.8]} 16. e4 {[%clk 0:02:41.2]} 16... c6 {[%clk
0:02:43.8]} 17. Rd2 {[%clk 0:02:32.2]} 17... Rxd2 {[%clk 0:02:43.2]} 18. Qxd2
{[%clk 0:02:30.4]} 18... Rd8 {[%clk 0:02:43.3]} 19. Qe3 {[%clk 0:02:28.5]} 19...
Nd7 {[%clk 0:02:43.6]} 20. Rd1 {[%clk 0:02:24.5]} 20... Nc5 {[%clk 0:02:45]} 21.
Rxd8+ {[%clk 0:02:24.4]} 21... Qxd8 {[%clk 0:02:46.5]} 22. Kf1 {[%clk
0:02:18.5]} 22... Ba6 {[%clk 0:02:47.2]} 23. Ke1 {[%clk 0:02:13.8]} 23... Qe7
{[%clk 0:02:37.1]} 24. Kd2 {[%clk 0:02:04.3]} 24... h6 {[%clk 0:02:25.6]} 25.
Kc2 {[%clk 0:02:00.9]} 25... Qe6 {[%clk 0:02:24.5]} 26. b3 {[%clk 0:01:56]}
26... f5 {[%clk 0:02:25.9]} 27. Nd2 {[%clk 0:01:53.2]} 27... f4 {[%clk
0:02:20.9]} 28. Qf3 {[%clk 0:01:50.4]} 28... h5 {[%clk 0:01:53.7]} 29. h4 {[%clk
0:01:44.1]} 29... Qd7 {[%clk 0:01:35]} 30. g4 {[%clk 0:01:30.6]} 30... fxg3
{[%clk 0:01:25.9]} 31. Qxg3 {[%clk 0:01:26]} 31... Kh7 {[%clk 0:01:14.3]} 32.
Nf3 {[%clk 0:01:25]} 32... Ne6 {[%clk 0:01:13.5]} 33. Nxe5 {[%clk 0:01:19.4]}
33... Nd4+ {[%clk 0:01:14.2]} 34. Kb2 {[%clk 0:01:17.2]} 34... Qd6 {[%clk
0:00:58.6]} 35. Qxg6+ {[%clk 0:00:56.5]} 35... Qxg6 {[%clk 0:00:57.9]} 36. Nxg6
{[%clk 0:00:58.4]} 36... Nxe2 {[%clk 0:00:58.9]} 0-1